lending/lending_fUSD_20250218
["ID","MTS","AMOUNT","RATE_DAILY","PERIOD"]
[353535634,1739903378596,-500.0,0.000235,30]
[353535635,1739903378620,-500.0,0.000235,30]
[353535636,1739903378644,-500.0,0.000235,30]
[353535637,1739903378668,-500.0,0.000235,30]
[353535638,1739903378693,-500.0,0.000235,30]
[353535639,1739903378717,-500.0,0.000235,30]
[353535640,1739903378743,-500.0,0.000235,30]
[353535641,1739903378767,-500.0,0.000235,30]
[353535642,1739903378791,-500.0,0.000235,30]
[353535643,1739903378815,-500.0,0.000235,30]
[353535644,1739903378839,-500.0,0.000235,30]
[353535645,1739903378863,-500.0,0.000235,30]
[353535646,1739903378886,-500.0,0.000235,30]
[353535647,1739903378911,-500.0,0.000235,30]
[353535648,1739903378937,-500.0,0.000235,30]
[353535649,1739903378961,-500.0,0.000235,30]
[353535650,1739903378989,-500.0,0.000235,30]
[353535651,1739903379141,-500.0,0.000235,30]
[353535652,1739903379166,-500.7,0.000235,30]
[353535653,1739903379190,-500.0,0.000235,30]
[353535654,1739903379215,-500.0,0.000235,30]
[353535655,1739903379243,-500.0,0.000235,30]
[353535656,1739903379267,-500.0,0.000235,30]
[353535657,1739903379294,-500.0,0.000235,30]
[353535658,1739903379321,-500.0,0.000235,30]
[353535659,1739903379346,-272.0244668,0.000235,30]
[353535660,1739903379373,-800.0,0.00024,40]
[353535661,1739903379399,-281.47,0.0002409,30]
[353535662,1739903379425,-150.5,0.0002463,120]
[353535663,1739903379449,-150.5,0.0002463,120]
[353535664,1739903379474,-158.79,0.0002463,120]
[353535665,1739903379499,-150.5,0.0002463,120]
[353535666,1739903379523,-150.5,0.0002463,120]
[353535667,1739903379547,-286.94,0.0002463,120]
[353535668,1739903379571,-150.5,0.0002464,120]
[353535669,1739903379596,-150.5,0.0002464,120]
[353535670,1739903379620,-286.6,0.0002464,120]
[353535671,1739903379644,-150.5,0.0002464,120]
[353535672,1739903379668,-150.5,0.0002464,120]
[353535673,1739903379693,-150.5,0.0002464,120]
[353535674,1739903379716,-150.5,0.0002464,120]
[353535675,1739903379741,-150.5,0.0002464,120]
[353535676,1739903379765,-150.5,0.0002465,120]
[353535677,1739903379789,-150.5,0.0002465,120]
[353535678,1739903379813,-150.5,0.0002465,120]
[353535679,1739903379837,-150.5,0.0002465,120]
[353535680,1739903379861,-150.5,0.0002465,120]
[353535681,1739903379886,-173.87,0.0002465,120]
[353535682,1739903379910,-150.5,0.0002465,120]
[353535683,1739903379935,-150.5,0.0002465,120]
[353535684,1739903379959,-150.5,0.0002465,120]
[353535685,1739903379984,-246.27,0.0002465,120]
[353535686,1739903380008,-590.0,0.0002467,120]
[353535687,1739903380033,-590.0,0.0002467,120]
[353535688,1739903380057,-590.0,0.0002468,120]
[353535689,1739903380082,-590.0,0.0002468,120]
[353535690,1739903380107,-590.0,0.0002468,120]
[353535691,1739903380131,-590.7,0.0002468,120]
[353535692,1739903380156,-590.0,0.0002469,120]
[353535693,1739903380180,-590.0,0.0002469,120]
[353535694,1739903380205,-590.0,0.0002469,120]
[353535695,1739903380231,-590.0,0.0002469,120]
[353535696,1739903380256,-245.75286031,0.00024899,120]
[353535697,1739903380280,-1999.58148431,0.000249,30]
[353535698,1739903380308,-199.999999,0.00025,120]
[353535699,1739903380337,-1036.88800417,0.00025,60]
[353535700,1739903380362,-2393.38049143,0.00025,30]
[353535701,1739903380387,-179.71639773,0.00025,30]
[353535702,1739903380413,-1507.35660375,0.00025,60]
[353535703,1739903380437,-3208.87722668,0.00025,60]
[353535704,1739903380462,-1587.0,0.00025,120]
[353535705,1739903380487,-1234.79918119,0.00025,30]
[353535706,1739903380511,-1949.44336753,0.00025,120]
[353535707,1739903380538,-345.82,0.0002533,120]
[353535708,1739903380563,-800.0,0.00026,60]
[353535709,1739903380587,-1067.03245778,0.00026325,50]
[353535710,1739903380613,-150.0,0.00026533,120]
[353535711,1739903380638,-281.47,0.00026674,30]
[353535712,1739903380666,-152.98,0.000268,31]
[353535713,1739903380694,-152.98,0.000268,31]
[353535714,1739903380720,-152.98,0.000268,31]
[353535715,1739903380748,-152.98,0.000268,31]
[353535716,1739903380776,-152.98,0.000268,31]
[353535717,1739903380803,-152.98,0.000268,31]
[353535718,1739903380830,-152.98,0.000268,31]
[353535719,1739903380856,-152.98,0.000268,31]
[353535720,1739903380882,-152.98,0.000268,31]
[353535721,1739903380909,-152.98,0.000268,31]
[353535722,1739903380936,-152.98,0.000268,31]
[353535723,1739903380963,-152.98,0.000268,31]
[353535724,1739903380990,-152.98,0.000268,31]
[353535725,1739903381017,-152.98,0.000268,31]
[353535726,1739903381043,-152.98,0.000268,31]
[353535727,1739903381070,-152.98,0.000268,31]
[353535728,1739903381096,-152.98,0.000268,31]
[353535729,1739903381123,-152.98,0.000268,31]
[353535730,1739903381149,-152.98,0.000268,31]
[353535731,1739903381175,-152.98,0.000268,31]
[353535732,1739903381201,-152.98,0.000268,31]
[353535733,1739903381228,-152.98,0.000268,31]
[353535734,1739903381254,-1414.28152886,0.00026841,55]
[353535735,1739903381279,-800.0,0.00026986,120]
[353535736,1739903381303,-800.0,0.00026986,120]
[353535737,1739903381331,-413.87,0.00026986,120]
[353535738,1739903381355,-493.82715,0.00027,120]
[353535739,1739903381381,-865.48278749,0.000273,30]
[353535740,1739903381408,-1198.30069579,0.0002736,120]
[353535741,1739903381432,-2000.0,0.00027397,30]
[353535742,1739903381458,-2000.0,0.00027397,30]
[353535743,1739903381483,-2000.0,0.00027397,30]
[353535744,1739903381506,-2000.0,0.00027397,30]
[353535745,1739903381679,-2000.0,0.00027397,30]
[353535746,1739903381705,-2000.0,0.00027397,30]
[353535747,1739903381730,-2000.0,0.00027397,30]
[353535748,1739903381755,-2000.0,0.00027397,30]
[353535749,1739903381780,-2000.0,0.00027397,30]
[353535750,1739903381805,-2000.0,0.00027397,30]
[353535751,1739903381829,-2000.0,0.00027397,30]
[353535752,1739903381854,-2000.0,0.00027397,30]
[353535753,1739903381880,-2000.0,0.00027397,30]
[353535754,1739903381905,-2000.0,0.00027397,30]
[353535755,1739903381931,-2000.0,0.00027397,30]
[353535756,1739903381958,-2000.0,0.00027397,30]
[353535757,1739903381984,-2000.0,0.00027397,30]
[353535758,1739903382009,-2000.0,0.00027397,30]
[353535759,1739903382035,-2000.0,0.00027397,30]
[353535760,1739903382060,-1975.26103663,0.00027397,30]
[353535761,1739903382086,-615.15,0.00027397,60]
[353535773,1739903431693,-520.0,9.651e-05,2]
[353535775,1739903431703,-200.0,9.675e-05,2]
[353535776,1739903431712,-300.0,9.7e-05,3]
[353535777,1739903431721,-600.0,9.8e-05,3]
[353535778,1739903431731,-200.0,9.805e-05,2]
[353535779,1739903431740,-900.0,9.9e-05,3]
[353535780,1739903431750,-5363.0,9.973e-05,2]
[353535781,1739903431760,-500.0,9.973e-05,2]
[353535782,1739903431770,-3661.63711865,9.973e-05,2]
[353535783,1739903431781,-150.0,9.999e-05,2]
[353535784,1739903431790,-500.0,9.999e-05,2]
[353535785,1739903431800,-433.73108729,9.999e-05,2]
[353535786,1739903431810,-500.0,9.999e-05,2]
[353535787,1739903431819,-441.0744725,9.999e-05,2]
[353535788,1739903431828,-52770.16211876,0.0001,2]
[353535789,1739903431840,-1000.0,0.0001,2]
[353535790,1739903431852,-3081.97164808,0.0001,2]
[353535791,1739903431864,-29932.55788102,0.0001,2]
[353535792,1739903431879,-684.04122533,0.0001,2]
[353535793,1739903431891,-5785.77617514,0.0001,2]
[353535794,1739903431904,-692.5626787,0.0001,2]
[353535795,1739903431916,-572.78472773,0.0001,2]
[353535796,1739903431928,-79964.1777653,0.0001,2]
[353535797,1739903431940,-3490.07497671,0.0001,2]
[353535823,1739903437554,-3353.17410737,0.0001,2]
[353535833,1739903437611,-262.67549019,0.0001,2]
[353535834,1739903437669,-3271017.98939064,0.0001,2]
[353535835,1739903437679,-35467.5348293,0.0001,2]
[353535836,1739903437688,-332.69885098,0.0001,2]
[353535837,1739903437697,-690.25955677,0.0001,2]
[353535838,1739903437707,-1300.0,0.0001,3]
[353535839,1739903437717,-1679.2619022,0.0001,2]
[353535840,1739903437726,-3956007.53156169,0.0001,2]
[353535841,1739903437736,-1127.60033307,0.0001,2]
[353535842,1739903437745,-319.2553913,0.0001,2]
[353535843,1739903437754,-203.11346132,0.0001,2]
[353535844,1739903437763,-184.50906007,0.0001,2]
[353535845,1739903437773,-522.99624082,0.0001,2]
[353535846,1739903437784,-522.99624082,0.0001,2]
[353535847,1739903437793,-522.99624082,0.0001,2]
[353535848,1739903437803,-1000.0,0.00010521,2]
[353535849,1739903437813,-200.0,0.00010616,2]
[353535850,1739903437822,-816.78,0.00010959,2]
[353535851,1739903437831,-255.0,0.00010999,2]
[353535852,1739903437841,-272.77299991,0.00011099,2]
[353535853,1739903437852,-303.34941876,0.00011099,2]
[353535854,1739903437862,-303.34941868,0.00011099,2]
[353535855,1739903437872,-1500.0,0.00011522,2]
[353535856,1739903437883,-2000.0,0.00012078,2]
[353535858,1739903437895,-303.34941868,0.00012122,2]
[353535859,1739903437906,-218.16,0.00012326,2]
[353535860,1739903437918,-284.19105783,0.0001282,2]
[353535861,1739903437931,-303.34941868,0.00013233,2]
[353535862,1739903437943,-250.0,0.00013298,2]
[353535863,1739903437954,-300.0,0.00013379,2]
[353535864,1739903437965,-668.57353053,0.00013379,2]
[353535865,1739903437975,-131205.9735212,0.0001338,3]
[353535866,1739903437986,-580.19323216,0.000136,2]
[353535867,1739903437997,-159.6313451,0.000136,2]
[353535868,1739903438008,-153.61,0.00013699,2]
[353535869,1739903438020,-4000.0,0.00013699,2]
[353535870,1739903438032,-15386.85347222,0.000139,2]
[353535871,1739903438050,-303.34941868,0.00014344,2]
[353535872,1739903438062,-350033.406095,0.000148,3]
[353535873,1739903438075,-434679.67233,0.000149,3]
[353535874,1739903438090,-3872.71484479,0.000149,3]
[353535875,1739903438111,-4130.96008544,0.000149,3]
[353535876,1739903438126,-389.35733865,0.000149,3]
[353535877,1739903438141,-953.30203135,0.000149,3]
[353535884,1739903439800,-1081.89551,0.000138,2]
[353535885,1739903439812,-13085.65979401,0.000149,3]
[353535886,1739903439836,-638.48931117,0.000149,3]
[353535887,1739903439849,-2383.87002002,0.000149,3]
[353535888,1739903439863,-527.19500001,0.000149,3]
[353535889,1739903439891,-20239.04360056,0.000149,3]
[353535890,1739903439904,-269.44,0.0001531,2]
[353535891,1739903439915,-8002.04451366,0.00015375,2]
[353535892,1739903439926,-303.34941868,0.00015456,2]
[353535893,1739903439937,-294.83,0.00015516,2]
[353535894,1739903439948,-166.66,0.00015769,2]
[353535895,1739903439959,-478.9,0.00016005,2]
[353535896,1739903439970,-166.66,0.0001629,2]
[353535897,1739903439981,-1885.765,0.00016538,2]
[353535898,1739903439991,-165.309,0.00016538,2]
[353535899,1739903440001,-303.34941868,0.00016567,2]
[353535900,1739903440013,-166.66,0.00016811,2]
[353535901,1739903440024,-166.66,0.00017331,2]
[353535902,1739903440037,-303.34941868,0.00017678,2]
[353535903,1739903440050,-1000.0,0.00017681,2]
[353535904,1739903440061,-500.0,0.00017683,2]
[353535905,1739903440073,-166.66,0.00017852,2]
[353535906,1739903440084,-303.45,0.00017933,2]
[353535907,1739903440094,-311.91,0.00017987,2]
[353535908,1739903440106,-200.0,0.00017987,2]
[353535909,1739903440116,-150.0,0.00018,2]
[353535910,1739903440127,-299.0820543,0.00018,2]
[353535911,1739903440137,-375.1556979,0.00018,2]
[353535912,1739903440147,-822.08440756,0.00018013,2]
[353535913,1739903440158,-250.0,0.0001805,2]
[353535914,1739903440168,-1930.71,0.00018108,2]
[353535915,1739903440179,-150.21,0.00018161,2]
[353535916,1739903440192,-506.38,0.00018252,2]
[353535917,1739903440204,-503.7,0.00018252,2]
[353535918,1739903440215,-153.61,0.00018265,2]
[353535919,1739903440224,-478.9,0.00018269,2]
[353535920,1739903440234,-507.99,0.00018344,2]
[353535921,1739903440244,-500.0,0.0001836,2]
[353535922,1739903440254,-500.0,0.0001836,2]
[353535923,1739903440263,-500.0,0.0001836,2]
[353535924,1739903440273,-500.0,0.0001836,2]
[353535925,1739903440285,-500.0,0.0001836,2]
[353535927,1739903440296,-500.0,0.0001836,2]
[353535928,1739903440307,-500.0,0.0001836,2]
[353535931,1739903440318,-500.0,0.0001836,2]
[353535932,1739903440330,-500.0,0.0001836,2]
[353535933,1739903440340,-500.0,0.0001836,2]
[353535934,1739903440352,-500.0,0.0001836,2]
[353535935,1739903440362,-500.0,0.0001836,2]
[353535936,1739903440371,-500.0,0.0001836,2]
[353535937,1739903440381,-449.0,0.0001836,2]
[353535938,1739903440392,-166.66,0.00018372,2]
[353535939,1739903440402,-9787.68598533,0.00018394,2]
[353535940,1739903440413,-345.82,0.00018422,2]
[353535941,1739903440424,-500.0,0.00018443,2]
[353535942,1739903440434,-504.3,0.00018444,2]
[353535943,1739903440445,-490.23,0.00018444,2]
[353535944,1739903440455,-492.59,0.00018444,2]
[353535945,1739903440465,-506.02,0.00018444,2]
[353535946,1739903440476,-495.65,0.00018444,2]
[353535947,1739903440486,-151.0,0.00018489,2]
[353535948,1739903440496,-5342.12435048,0.000185,2]
[353535949,1739903440506,-36000.0,0.000185,3]
[353535950,1739903440516,-644.20936193,0.000185,2]
[353535951,1739903440527,-499.7,0.00018537,2]
[353535952,1739903440538,-502.16,0.00018537,2]
[353535953,1739903440548,-505.64,0.00018537,2]
[353535954,1739903440558,-493.19,0.00018543,2]
[353535955,1739903440569,-334.63,0.00018566,2]
[353535956,1739903440579,-154.59,0.000186,2]
[353535957,1739903440589,-495.83,0.00018637,2]
[353535958,1739903440599,-505.53,0.00018637,2]
[353535959,1739903440609,-507.18,0.00018637,2]
[353535960,1739903440619,-509.58,0.00018637,2]
[353535961,1739903440629,-493.55,0.00018637,2]
[353535962,1739903440639,-416.96859791,0.00018658,2]
[353535963,1739903440650,-167.28629132,0.000187,5]
[353535964,1739903440660,-190.09480713,0.00018731,2]
[353535965,1739903440670,-491.08,0.00018761,2]
[353535966,1739903440680,-490.2,0.00018773,2]
[353535967,1739903440691,-303.34941868,0.00018789,2]
[353535968,1739903440701,-509.57,0.00018789,2]
[353535969,1739903440711,-504.64,0.00018808,2]
[353535970,1739903440721,-493.87,0.00018838,2]
[353535971,1739903440733,-506.65,0.00018869,2]
[353535972,1739903440743,-416.96859791,0.00018909,2]
[353535973,1739903440754,-24676.13000215,0.00018995,5]
[353535974,1739903440764,-96876.26505714,0.00019,2]
[353535975,1739903440778,-552.31316,0.00019,2]
[353535976,1739903440797,-1081.89551,0.000155,2]
[353535977,1739903440808,-4433.45550685,0.00019,2]
[353535978,1739903440820,-974.12804299,0.00019,2]
[353535983,1739903442695,-1081.89552,0.000172,2]
[353535984,1739903442705,-97978.39402481,0.00019,2]
[353535985,1739903442717,-364.53,0.000191,2]
[353535986,1739903442727,-200.0,0.000192,2]
[353535987,1739903442737,-1600.0,0.000193,7]
[353535988,1739903442747,-416.96859791,0.00019316,2]
[353535989,1739903442757,-150.0,0.00019323,2]
[353535990,1739903442767,-155.676253,0.00019331,3]
[353535991,1739903442778,-500.8,0.00019346,2]
[353535992,1739903442791,-300.0,0.000194,7]
[353535993,1739903442802,-4974.24071306,0.00019441,4]
[353535994,1739903442813,-2364.88485548,0.00019487,2]
[353535995,1739903442823,-2364.8848554,0.00019487,2]
[353535996,1739903442834,-300.0,0.000195,7]
[353535997,1739903442844,-416.96859794,0.00019528,2]
[353535998,1739903442855,-302.46,0.00019549,2]
[353535999,1739903442865,-150.0,0.00019549,2]
[353536000,1739903442875,-509.2,0.0001958,2]
[353536001,1739903442886,-353.5873468,0.00019599,2]
[353536002,1739903442896,-300.0,0.000196,7]
[353536003,1739903442906,-508.33,0.00019616,2]
[353536004,1739903442916,-494.45,0.00019622,2]
[353536005,1739903442927,-573.1323,0.00019626,2]
[353536006,1739903442937,-500.49,0.00019626,2]
[353536007,1739903442947,-500.0,0.00019673,2]
[353536008,1739903442957,-3000.0,0.000197,2]
[353536009,1739903442968,-300.0,0.000197,7]
[353536010,1739903442978,-110308.14486863,0.000197,2]
[353536011,1739903443004,-2247.8920004,0.000197,2]
[353536012,1739903443018,-1160027.86776163,0.000197,2]
[353536014,1739903443029,-467.636979,0.000197,2]
[353536282,1739903445613,-273.66,0.0001887,30]
[353536284,1739903445623,-99103.34,0.000197,2]
[353536287,1739903445634,-598.62832,0.000197,2]
[353536292,1739903445671,-81671.22001235,0.000197,2]
[353536294,1739903445682,-3512511.85744888,0.000197,2]
[353536296,1739903445691,-151.0,0.000197,2]
[353536298,1739903445700,-1614.097852,0.000197,2]
[353536300,1739903445709,-1614.097852,0.000197,2]
[353536302,1739903445719,-649.775532,0.000197,2]
[353536304,1739903445727,-649.775532,0.000197,2]
[353536306,1739903445736,-151.0,0.000197,2]
[353536308,1739903445745,-151.0,0.000197,2]
[353536310,1739903445756,-500.0,0.00019726,7]
[353536312,1739903445765,-500.0,0.00019726,3]
[353536314,1739903445774,-500.0,0.00019726,3]
[353536316,1739903445783,-500.0,0.00019726,3]
[353536318,1739903445793,-500.0,0.00019726,3]
[353536320,1739903445802,-500.0,0.00019726,3]
[353536322,1739903445811,-500.0,0.00019726,3]
[353536324,1739903445820,-500.0,0.00019726,3]
[353536326,1739903445829,-500.0,0.00019726,3]
[353536328,1739903445838,-645.15086186,0.00019726,3]
[353536330,1739903445847,-500.0,0.00019726,3]
[353536332,1739903445857,-501.06647911,0.00019726,3]
[353536334,1739903445866,-500.0,0.00019726,3]
[353536336,1739903445875,-500.0,0.00019726,3]
[353536338,1739903445884,-500.0,0.00019726,3]
[353536339,1739903445893,-500.0,0.00019726,3]
[353536341,1739903445903,-645.74,0.00019726,3]
[353536343,1739903445912,-500.0,0.00019726,3]
[353536345,1739903445921,-500.0,0.00019726,3]
[353536347,1739903445930,-500.0,0.00019726,3]
[353536349,1739903445939,-500.0,0.00019726,3]
[353536351,1739903445949,-500.0,0.00019726,3]
[353536353,1739903445958,-500.0,0.00019726,3]
[353536355,1739903445967,-500.0,0.00019726,3]
[353536357,1739903445978,-503.46,0.00019726,3]
[353536359,1739903445987,-500.0,0.00019726,3]
[353536361,1739903445996,-500.0,0.00019726,3]
[353536363,1739903446006,-500.0,0.00019726,3]
[353536365,1739903446015,-500.0,0.00019726,3]
[353536367,1739903446025,-500.0,0.00019726,3]
[353536369,1739903446034,-500.0,0.00019726,3]
[353536371,1739903446044,-500.0,0.00019726,3]
[353536373,1739903446053,-500.0,0.00019726,3]
[353536375,1739903446063,-500.0,0.00019726,3]
[353536377,1739903446072,-500.0,0.00019726,3]
[353536379,1739903446082,-500.0,0.00019726,3]
[353536381,1739903446091,-500.0,0.00019726,3]
[353536383,1739903446100,-500.0,0.00019726,3]
[353536385,1739903446109,-500.0,0.00019726,3]
[353536387,1739903446119,-500.0,0.00019726,3]
[353536389,1739903446128,-500.0,0.00019726,3]
[353536391,1739903446137,-500.0,0.00019726,3]
[353536393,1739903446146,-638.09909068,0.00019726,3]
[353536395,1739903446156,-500.0,0.00019726,3]
[353536397,1739903446165,-500.0,0.00019726,3]
[353536398,1739903446175,-500.0,0.00019726,3]
[353536399,1739903446185,-500.0,0.00019726,3]
[353536400,1739903446194,-500.0,0.00019726,3]
[353536401,1739903446204,-500.0,0.00019726,3]
[353536402,1739903446213,-500.0,0.00019726,3]
[353536403,1739903446222,-500.0,0.00019726,3]
[353536404,1739903446231,-500.0,0.00019726,3]
[353536406,1739903446240,-500.0,0.00019726,3]
[353536408,1739903446250,-494.5868,0.00019726,3]
[353536410,1739903446259,-500.0,0.00019726,3]
[353536412,1739903446268,-500.0,0.00019726,3]
[353536414,1739903446277,-500.0,0.00019726,3]
[353536416,1739903446287,-500.0,0.00019726,3]
[353536418,1739903446298,-500.0,0.00019726,3]
[353536420,1739903446307,-500.0,0.00019726,3]
[353536422,1739903446316,-500.0,0.00019726,3]
[353536424,1739903446325,-500.0,0.00019726,3]
[353536426,1739903446335,-500.0,0.00019726,3]
[353536428,1739903446346,-500.0,0.00019726,3]
[353536430,1739903446357,-500.0,0.00019726,3]
[353536432,1739903446367,-500.0,0.00019726,3]
[353536434,1739903446376,-508.94938649,0.00019726,3]
[353536436,1739903446387,-500.0,0.00019726,3]
[353536438,1739903446397,-500.0,0.00019726,3]
[353536440,1739903446406,-500.0,0.00019726,3]
[353536442,1739903446415,-500.0,0.00019726,3]
[353536444,1739903446425,-500.0,0.00019726,3]
[353536446,1739903446434,-1842.25,0.00019726,3]
[353536448,1739903446444,-500.0,0.00019726,3]
[353536450,1739903446453,-500.0,0.00019726,3]
[353536452,1739903446463,-500.0,0.00019726,3]
[353536454,1739903446472,-500.0,0.00019726,3]
[353536456,1739903446482,-500.0,0.00019726,3]
[353536458,1739903446491,-254.58906154,0.00019726,3]
[353536460,1739903446500,-612.33,0.00019726,3]
[353536462,1739903446509,-500.0,0.00019726,3]
[353536464,1739903446520,-500.0,0.00019726,3]
[353536466,1739903446529,-500.0,0.00019726,3]
[353536468,1739903446538,-500.0,0.00019726,3]
[353536470,1739903446552,-500.0,0.00019726,3]
[353536472,1739903446561,-725.07,0.00019726,3]
[353536474,1739903446571,-500.0,0.00019726,3]
[353536476,1739903446582,-725.07,0.00019726,3]
[353536478,1739903446591,-725.07,0.00019726,3]
[353536481,1739903446601,-725.07,0.00019726,3]
[353536483,1739903446610,-725.07,0.00019726,3]
[353536485,1739903446620,-725.07,0.00019726,3]
[353536486,1739903446630,-725.07,0.00019726,3]
[353536488,1739903446639,-725.07,0.00019726,3]
[353536490,1739903446648,-725.07,0.00019726,3]
[353536492,1739903446658,-725.07,0.00019726,3]
[353536494,1739903446668,-725.07,0.00019726,3]
[353536496,1739903446678,-725.07,0.00019726,3]
[353536498,1739903446687,-725.07,0.00019726,3]
[353536500,1739903446697,-725.07,0.00019726,3]
[353536502,1739903446706,-725.07,0.00019726,3]
[353536504,1739903446716,-725.07,0.00019726,3]
[353536506,1739903446725,-725.07,0.00019726,3]
[353536508,1739903446734,-725.07,0.00019726,3]
[353536510,1739903446744,-725.07,0.00019726,3]
[353536512,1739903446753,-725.07,0.00019726,3]
[353536514,1739903446764,-725.07,0.00019726,3]
[353536516,1739903446774,-725.07,0.00019726,3]
[353536518,1739903446783,-725.07,0.00019726,3]
[353536520,1739903446794,-725.14,0.00019726,3]
[353536522,1739903446803,-502.3351736,0.00019726,3]
[353536524,1739903446813,-500.0,0.00019726,3]
[353536526,1739903446822,-500.0,0.00019726,3]
[353536528,1739903446831,-201.00985983,0.00019726,3]
[353536530,1739903446840,-500.0,0.00019726,3]
[353536532,1739903446849,-514.8705701,0.00019726,3]
[353536534,1739903446860,-500.0,0.00019726,3]
[353536536,1739903446869,-500.0,0.00019726,3]
[353536538,1739903446878,-506.60843368,0.00019726,3]
[353536540,1739903446887,-500.0,0.00019726,3]
[353536542,1739903446897,-508.09834272,0.00019726,3]
[353536544,1739903446906,-500.0,0.00019726,3]
[353536546,1739903446916,-500.0,0.00019726,3]
[353536548,1739903446924,-500.0,0.00019726,3]
[353536550,1739903446934,-500.0,0.00019726,3]
[353536552,1739903446944,-169.83317772,0.00019726,3]
[353536554,1739903446953,-500.0,0.00019726,3]
[353536556,1739903446963,-497.74621939,0.00019726,3]
[353536558,1739903446972,-500.0,0.00019726,3]
[353536560,1739903446982,-500.0,0.00019726,3]
[353536562,1739903446991,-500.0,0.00019726,3]
[353536564,1739903447001,-500.0,0.00019726,3]
[353536566,1739903447011,-189.14015693,0.00019726,2]
[353536568,1739903447020,-150.0,0.00019729,2]
[353536570,1739903447029,-2624.10861,0.0001978,2]
[353536572,1739903447039,-500.0,0.00019799,3]
[353536574,1739903447049,-2789.70716225,0.000198,2]
[353536575,1739903447058,-700.0,0.000198,7]
[353536577,1739903447067,-500.0,0.00019839,2]
[353536580,1739903447077,-500.0,0.0001984,2]
[353536581,1739903447086,-245592.49605169,0.0001985,3]
[353536583,1739903447096,-166.1,0.00019858,2]
[353536585,1739903447106,-4996.4055,0.00019878,2]
[353536588,1739903447115,-1000.0,0.00019879,2]
[353536590,1739903447125,-500.0,0.00019879,2]
[353536591,1739903447134,-330.6067,0.0001988,2]
[353536594,1739903447144,-23246.9154,0.00019889,2]
[353536595,1739903447154,-1000.0,0.00019891,2]
[353536598,1739903447163,-690.25955677,0.000199,2]
[353536599,1739903447173,-303.34941868,0.000199,2]
[353536601,1739903447182,-319.25539129,0.000199,2]
[353536603,1739903447192,-175.24938405,0.000199,2]
[353536606,1739903447210,-150.0,0.00019942,2]
[353536609,1739903447221,-645.74,0.00019969,3]
[353536611,1739903447231,-500.0,0.00019969,3]
[353536612,1739903447254,-1000.0,0.0001997,2]
[353536615,1739903447330,-1000.0,0.0001997,2]
[353536616,1739903447480,-494.08,0.0001997,2]
[353536618,1739903447617,-154.59,0.0001997,2]
[353536621,1739903447720,-165.1163092,0.00019973,2]
[353536622,1739903447831,-500.0,0.00019973,2]
[353536624,1739903447916,-163.05024556,0.00019973,2]
[353536626,1739903448033,-500.0,0.00019978,3]
[353536628,1739903448136,-500.0,0.00019978,3]
[353536630,1739903448232,-645.74,0.00019979,3]
[353536632,1739903448335,-500.0,0.00019979,3]
[353536635,1739903448413,-500.0,0.00019979,3]
[353536637,1739903448428,-500.0,0.00019979,3]